Cogmind - Beta 9.6 @@@ ROGUE MODE // 2020.08.04 @ 12:47:02 // Winter2019/RPGLIKE Player: Torako Result: Destroyed by Combat Programmer with EMDS Performance ------------- Evolutions (9) 4500 Regions Visited (30) 6000 Robots Destroyed (366) 1830 Value Destroyed (16220) 16220 Prototype IDs (66) 1320 Alien Tech Used (1) 200 Bonus (3807) 3807 TOTAL SCORE: 33877 Bonus ------- High Alert Combat Kills 980 Follower Combat Kills 1289 Entered Garrisons 200 Used RIF Installer 500 Network Hubs Disabled 800 Aligned with FarCom 300 Met Data Miner 300 A7 Reached Mainframe 300 Met R17 at Cetus 500 Friendly Fire -1362 Cogmind --------- Core Integrity 0/1650 Matter 235/300 Energy 1535/1540 System Corruption 35% Temperature Cool (9) Movement Rolling (105) Ox1 Location -1/Command Parts ------- > --- POWER (4) -------- F-cell Engine Particle Reactor Quantum Reactor Quantum Reactor > --- PROPULSION (4) --- Armored Huge Wheel High-density Centrium Wheel > --- UTILITY (8) ------ Advanced Terrain Scanner Advanced Core Analyzer Weapon Cycler Force Field System Backup Module > --- WEAPON (4) ------- Enhanced Nova Cannon Gamma Bomb Array > --- INVENTORY (7) ---- YI-UF0's Bottomless Matter Pit (1500) Weapon Cycler Heavy Proton Cannon Proton Burst Cannon Enhanced Nova Cannon Advanced Datajack Remote Datajack Peak State ------------ > --- POWER ------------ F-cell Engine Particle Reactor Quantum Reactor Quantum Reactor > --- PROPULSION ------- Compact Wheel Armored Huge Wheel High-density Centrium Wheel > --- UTILITY ---------- Advanced Terrain Scanner Advanced Core Analyzer Weapon Cycler Cloak of Protection Powered Armor Powered Armor Force Field System Backup Module > --- WEAPON ----------- Heavy Proton Cannon Proton Burst Cannon Nova Cannon Enhanced Nova Cannon > --- INVENTORY -------- YI-UF0's Bottomless Matter Pit Weapon Cycler Tesla Rifle Tesla Rifle Improved Proton Missile Launcher Advanced Datajack Remote Datajack [Rating: 125] Favorites ----------- Power Quantum Reactor Engine F-cell Engine Power Core Light Fission Core Reactor Quantum Reactor Propulsion Armored Huge Wheel Leg Aluminum Leg Wheel Armored Huge Wheel Hover Unit Aerolev Unit Utility Cloak of Protection Device Cloak of Protection Storage YI-UF0's Bottomless Matter Pit Processor Advanced Core Analyzer Hackware Relay Coupler [NC] Protection Powered Armor Weapon Light EM Pulse Cannon Energy Gun Tesla Rifle Energy Cannon Light EM Pulse Cannon Ballistic Gun Enhanced Autogun Launcher Improved Proton Missile Launcher Special Weapon Remote Datajack Slashing Weapon Mining Claw Special Melee Weapon Datajack Build | -11 -10 -10 -9 -9 -9 -8 -8 -8 -7 -7 -7 -7 -7 -7 -6 -6 -6 -6 -6 -6 -5 -4 -4 -4 -4 -3 -3 -2 -1 -1 ------- Run | Scr Mat Min Mat Min Exi Min Mat Sto Fac Gar Fac Low Low Dat Pro Fac Ext Cet Arc Hub Fac Fac Upp Upp War Pro Res Res Acc Com Slots Evolved 15 | 2 . . 2 . 1 1 3 . . . . . . . 1 1 . . . 1 . 1 1 . . 1 . . . . Power 3 | . . . . . . . 2 . . . . . . . . . . . . . . . 1 . . . . . . . Propulsion 2 | 1 . . . . . . . . . . . . . . . . . . . 1 . . . . . . . . . . Utility 7 | 1 . . 1 . 1 . 1 . . . . . . . 1 1 . . . . . 1 . . . . . . . . Weapon 3 | . . . 1 . . 1 . . . . . . . . . . . . . . . . . . . 1 . . . . Parts Attached 222 | 2 6 7 23 3 1 2 4 23 2 2 7 5 3 5 7 10 6 9 . 10 10 5 6 11 2 8 14 7 17 5 Power 20 | . 1 1 4 . . . 3 3 . . . . . . . 1 . 2 . . . . 1 1 . 1 . 1 1 . Engine 9 | . . 1 4 . . . 1 3 . . . . . . . . . . . . . . . . . . . . . . Core 4 | . 1 . . . . . 2 . . . . . . . . 1 . . . . . . . . . . . . . . Reactor 7 | . . . . . . . . . . . . . . . . . . 2 . . . . 1 1 . 1 . 1 1 . Propulsion 11 | 1 . 1 1 1 . . . 2 . . . . . . . . . . . 1 . . . . . . 3 1 . . Treads . | . . . . . . . . . . . . . . . . . . . . . . . . . . . . . . . Leg 3 | 1 . 1 1 . . . . . . . . . . . . . . . . . . . . . . . . . . . Wheel 7 | . . . . 1 . . . 1 . . . . . . . . . . . 1 . . . . . . 3 1 . . Hover 1 | . . . . . . . . 1 . . . . . . . . . . . . . . . . . . . . . . Flight . | . . . . . . . . . . . . . . . . . . . . . . . . . . . . . . . Utility 60 | . 4 2 6 . 1 1 1 1 2 . 1 3 1 . 3 4 2 2 . . 7 5 1 3 . 2 4 1 2 1 Device 38 | . 1 1 2 . 1 1 1 . 2 . 1 2 1 . 3 3 1 . . . 5 3 1 3 . 2 2 1 1 . Storage 1 | . . 1 . . . . . . . . . . . . . . . . . . . . . . . . . . . . Processor 7 | . 3 . 1 . . . . . . . . . . . . 1 . . . . . 1 . . . . 1 . . . Hackware 1 | . . . . . . . . . . . . . . . . . 1 . . . . . . . . . . . . . Protection 13 | . . . 3 . . . . 1 . . . 1 . . . . . 2 . . 2 1 . . . . 1 . 1 1 Artifact . | . . . . . . . . . . . . . . . . . . . . . . . . . . . . . . . Weapon 131 | 1 1 3 12 2 . 1 . 17 . 2 6 2 2 5 4 5 4 5 . 9 3 . 4 7 2 5 7 4 14 4 Energy Gun 24 | 1 . . 1 . . . . 2 . . . . . . . 2 . . . 1 . . . 3 1 3 5 . 5 . Energy Cannon 78 | . 1 1 8 1 . 1 . 9 . 1 5 1 1 4 3 2 2 3 . 8 3 . 3 2 1 2 2 4 7 3 Ballistic Gun 6 | . . . 2 . . . . 2 . 1 1 . . . . . . . . . . . . . . . . . . . Ballistic Cannon . | . . . . . . . . . . . . . . . . . . . . . . . . . . . . . . . Launcher 17 | . . . 1 1 . . . 3 . . . 1 1 . 1 1 . 2 . . . . 1 2 . . . . 2 1 Special Weapon 2 | . . . . . . . . 1 . . . . . . . . 1 . . . . . . . . . . . . . Impact Weapon . | . . . . . . . . . . . . . . . . . . . . . . . . . . . . . . . Slashing Weapon 2 | . . 2 . . . . . . . . . . . . . . . . . . . . . . . . . . . . Piercing Weapon . | . . . . . . . . . . . . . . . . . . . . . . . . . . . . . . . Special Melee Weapon 2 | . . . . . . . . . . . . . . 1 . . 1 . . . . . . . . . . . . . Unidentified Prototypes 21 | . . 1 2 . . . . 8 . . . . . . 1 2 . 1 . 1 1 1 . . . . 2 1 . . Parts Lost 5 | . . . . . . . . . . . . . . . . . . . . 1 . . . . . . 1 . . 3 Power . | . . . . . . . . . . . . . . . . . . . . . . . . . . . . . . . Propulsion . | . . . . . . . . . . . . . . . . . . . . . . . . . . . . . . . Utility 4 | . . . . . . . . . . . . . . . . . . . . 1 . . . . . . . . . 3 Weapon 1 | . . . . . . . . . . . . . . . . . . . . . . . . . . . 1 . . . Highest Loss Streak 3 | . . . . . . . . . . . . . . . . . . . . 1 . . . . . . 1 . . 3 Average Slot Usage (%) 90 | . 97 99 97 93 84 88 89 91 92 92 92 92 92 78 89 84 87 87 87 87 84 85 88 89 89 89 89 90 94 88 Engine 12 | . 14 11 13 12 11 10 14 14 23 23 23 23 23 23 20 12 12 11 6 5 5 5 5 5 5 5 5 5 5 5 Core 1 | . 1 4 . . . . 3 7 . . . . . . . 4 6 3 . . . . . . . . . . . . Reactor 5 | . . . . . . . . . . . . . . . . . . 3 12 11 11 11 14 15 15 15 15 15 15 15 Leg 4 | . 33 33 29 11 . . . . . . . . . . . . . . . . . . . . . . . . . . Wheel 7 | . . . . 6 11 10 8 7 7 7 7 7 7 7 6 6 6 6 6 7 11 11 10 10 10 10 10 10 15 14 Device 27 | . 1 10 17 25 27 31 28 30 30 30 30 30 30 30 33 36 32 31 31 30 28 31 31 31 31 30 29 25 25 24 Processor 2 | . 29 21 6 . . . . . . . . . . . . . . . . . . . . . . . . 5 5 5 Protection 7 | . . . 8 12 11 10 8 7 7 7 7 7 7 7 6 6 6 6 6 5 7 8 10 10 10 10 9 10 9 9 Energy Gun 2 | . . . . . . . . . . . . . . . . . . . . . . . . 4 12 19 17 14 5 . Energy Cannon 16 | . 15 8 18 24 23 25 25 22 23 22 22 22 22 8 21 17 17 16 18 17 14 16 14 8 2 . 2 5 14 14 Naked Turns . | . . . . . . . . . . . . . . . . . . . . . . . . . . . . . . . Heaviest Build 155 | 5 8 14 28 28 36 40 51 62 62 60 66 66 66 64 72 72 72 95 95 100 109 110 129 128 127 138 139 143 155 146 Greatest Support 69 | 20 20 30 30 33 33 33 33 33 33 33 33 33 33 33 33 33 33 33 33 61 61 61 61 61 61 61 61 69 69 69 Greatest Overweight (x) 7 | . . . . . 1 1 1 7 1 1 1 1 1 1 2 2 2 2 2 3 1 1 2 2 2 2 4 2 2 2 Average Overweight (x) 1 | . . . . . . 1 1 1 1 1 1 1 1 1 1 1 2 2 2 1 1 1 1 1 1 2 2 1 1 1 Largest Inventory Capacity 7 | 3 3 4 5 5 5 5 5 7 7 7 7 7 7 7 7 7 7 7 7 7 7 7 7 7 7 7 7 7 7 7 Average Capacity 6 | 2 3 3 4 5 5 5 5 6 7 7 7 7 7 7 7 7 7 7 7 7 7 7 7 7 7 7 7 7 7 7 Most Carried 7 | 3 3 4 5 5 5 5 5 7 7 7 7 7 7 7 7 7 7 7 7 7 7 7 6 7 7 7 7 7 7 7 Average Carried 6 | 1 2 3 4 5 4 4 4 5 6 7 6 7 6 7 6 7 6 7 7 7 6 6 6 6 7 6 6 7 6 7 Final Capacity 7 | 3 3 4 5 5 5 5 5 7 7 7 7 7 7 7 7 7 7 7 7 7 7 7 7 7 7 7 7 7 7 7 Final Carried 7 | 3 3 4 5 5 5 5 4 7 7 7 7 7 7 7 7 7 7 7 7 7 7 6 6 7 7 7 7 7 7 7 Class Distribution -------------------- 35% | Generator-Tank 24% | Hacker-Tank 15% | Mutant 8% | Generator-Mutant 4% | Tank 3% | Scavenger-Mutant 3% | Hacker-Mutant Dominant Class ---------------- Mutant | -10/Materials Scavenger-Mutant | -10/Mines Mutant | -9/Materials Mutant | -9/Mines Mutant | -9/Exiles Tank | -8/Mines Tank | -8/Materials Generator-Tank | -8/Storage Commander-Tank | -7/Factory Generator-Tank | -7/Garrison Hacker-Tank | -7/Factory Hacker-Tank | -7/Lower Caves Hacker-Tank | -7/Lower Caves Hacker-Mutant | -7/Data Miner Hacker-Tank | -6/Proximity Caves Hacker-Tank | -6/Factory Hacker-Tank | -6/Extension Hacker-Mutant | -6/Cetus Generator-Tank | -6/Archives Generator-Tank | -6/Hub_04(d) Generator-Tank | -5/Factory Generator-Tank | -4/Factory Generator-Tank | -4/Upper Caves Generator-Tank | -4/Upper Caves Generator-Tank | -4/Warlord Generator-Tank | -3/Proximity Caves Generator-Tank | -3/Research Generator-Tank | -2/Research Generator-Tank | -1/Access Generator-Tank | -1/Command Resources | -11 -10 -10 -9 -9 -9 -8 -8 -8 -7 -7 -7 -7 -7 -7 -6 -6 -6 -6 -6 -6 -5 -4 -4 -4 -4 -3 -3 -2 -1 -1 ----------- Run | Scr Mat Min Mat Min Exi Min Mat Sto Fac Gar Fac Low Low Dat Pro Fac Ext Cet Arc Hub Fac Fac Upp Upp War Pro Res Res Acc Com Matter Collected 4557 | 200 80 956 899 52 . 30 40 255 20 37 48 185 68 . 237 120 96 140 10 100 90 60 84 149 . 135 150 26 220 70 Remotely . | . . . . . . . . . . . . . . . . . . . . . . . . . . . . . . . Salvage Created 16944 | . 399 147 1051 373 . 507 1494 1256 81 238 1271 764 163 . 1016 582 903 594 366 817 243 126 525 640 . 584 650 529 1246 379 Parts 840 | . 28 4 78 20 . 13 48 64 6 19 46 34 13 . 27 37 34 22 15 56 6 3 26 27 . 39 42 12 94 27 Haulers Intercepted 11 | . 2 . 5 . . . 1 3 . . . . . . . . . . . . . . . . . . . . . . Recyclers Shooed 1 | . . . . . . . . . . . . . . . . 1 . . . . . . . . . . . . . . Parts Field Recycled . | . . . . . . . . . . . . . . . . . . . . . . . . . . . . . . . Retrieved Matter . | . . . . . . . . . . . . . . . . . . . . . . . . . . . . . . . Parts Self-Destructed 88 | . . . . . . . . . . . . 10 2 . 27 . . . . . . . 12 19 . 18 . . . . Prevented 103 | . . . . . . . . . . . . 24 6 . 16 . . . . . . . 14 18 . 25 . . . . Kills | -11 -10 -10 -9 -9 -9 -8 -8 -8 -7 -7 -7 -7 -7 -7 -6 -6 -6 -6 -6 -6 -5 -4 -4 -4 -4 -3 -3 -2 -1 -1 ------- Run | Scr Mat Min Mat Min Exi Min Mat Sto Fac Gar Fac Low Low Dat Pro Fac Ext Cet Arc Hub Fac Fac Upp Upp War Pro Res Res Acc Com Combat Hostiles Destroyed 303 | . 8 . 26 9 . 10 24 21 4 7 18 13 5 . 23 9 12 9 4 14 4 1 16 13 . 10 8 5 25 5 Guns 10 | . . . . . . . . . . 1 1 . . . . . . . . . . . . . . 5 . 1 2 . Cannons 184 | . 8 . 15 4 . 7 21 18 . 6 12 2 2 . 14 5 7 2 3 10 4 1 8 5 . 2 6 2 16 4 AOE 65 | . . . 11 3 . . . 2 4 . 2 8 3 . 6 3 1 1 . 3 . . 6 5 . . . . 7 . Classes Destroyed 16 | . 5 . 4 1 . 1 . 1 . 2 . 1 . . . . . . . . . . . . . 1 . . . . Worker 9 | . . . . 1 . . . . . . . . . . . 2 . . . 3 . . . . . . 1 . 2 . Builder 11 | . . . 1 . . . . 1 1 . 1 . . . . 3 1 . . 1 . . . . . . 1 . 1 . Hauler 11 | . 2 . 5 . . . 1 3 . . . . . . . . . . . . . . . . . . . . . . Recycler 6 | . . . 2 . . . . 1 . . . . . . . . . . . . 1 . . . . . . . 2 . Carrier 1 | . . . . . . . . . . . . . . . . . . . . . . . . . . 1 . . . . Mechanic 1 | . . . . . . . . 1 . . . . . . . . . . . . . . . . . . . . . . Operator 6 | . 2 . 1 . . . 1 . . . 1 . . . . . . . . 1 . . . . . . . . . . Watcher 16 | . 2 . 2 . . . 1 . . . . . . . . 2 1 1 . 4 1 . . . . . . . 2 . Swarmer 79 | . 3 . 8 3 . . . . 3 2 1 4 3 . 14 . . 2 . . 1 . 12 6 . 4 . . 13 . Grunt 104 | . 5 . 10 6 . 9 18 11 1 3 10 3 . . 4 5 7 1 . 5 . . 1 5 . . . . . . Brawler 6 | . . . . . . . . . . 1 2 1 . . . . . . . . 2 . . . . . . . . . Duelist 14 | . . . 1 . . . 2 2 . . . 3 1 . 4 . 1 . . . . . . . . . . . . . Sentry 55 | . . . 7 . . . 4 7 . . 4 1 . . 1 3 2 . 4 8 1 1 1 2 . 1 2 4 . 2 Hunter 9 | . . . . . . 1 . 1 . . . . . . . 1 . . . . . . 2 . . 2 . . 2 . Programmer 24 | . . . . . . . . . . 1 1 . 1 . . . . . . 1 . . . . . 2 6 1 10 1 Behemoth 4 | . . . . . . . . . . . . 1 . . . . 2 . . . . . . . . 1 . . . . Cetus Guard 6 | . . . . . . . . . . . . . . . . . . 6 . . . . . . . . . . . . Butcher 1 | . . . . . . . . . . . . . . . . . . 1 . . . . . . . . . . . . Wizard 2 | . . . . . . . . . . . . . . . . . . . . . . . . . . . . . . 2 Best Kill Streak 14 | . 3 . 14 4 . 3 10 13 4 4 4 9 3 . 8 8 5 4 4 6 2 1 10 7 . 3 4 2 10 2 Combat Bots Only 14 | . 3 . 14 3 . 3 6 11 3 4 4 9 3 . 8 4 5 4 4 6 2 1 10 7 . 3 4 2 7 2 Max Kills in Single Turn 5 | . 1 1 3 2 . 1 1 2 4 1 2 5 2 . 2 3 1 1 1 5 1 1 2 3 . 1 1 1 4 1 Gunslinging . | . . . . . . . . . . . . . . . . . . . . . . . . . . . . . . . Exploded 5 | . . . 3 2 . . . 1 3 . 1 5 2 . 2 2 1 1 . 2 . . 2 3 . . . . 4 . Melee . | . . . . . . . . . . . . . . . . . . . . . . . . . . . . . . . Uniques/NPCs Destroyed 1 | . . 1 . . . . . . . . . . . . . . . . . . . . . . . . . . . . YI-UF0 (-10/Mines) Combat | -11 -10 -10 -9 -9 -9 -8 -8 -8 -7 -7 -7 -7 -7 -7 -6 -6 -6 -6 -6 -6 -5 -4 -4 -4 -4 -3 -3 -2 -1 -1 -------- Run | Scr Mat Min Mat Min Exi Min Mat Sto Fac Gar Fac Low Low Dat Pro Fac Ext Cet Arc Hub Fac Fac Upp Upp War Pro Res Res Acc Com Damage Taken 12330 | . 237 24 1187 177 . 335 466 192 . 124 404 431 132 . 729 112 264 184 61 2034 76 57 297 230 . 319 627 271 980 2380 Core 8676 | . 188 18 955 112 . 235 352 139 . 91 291 303 101 . 551 81 186 130 42 1425 57 40 188 136 . 201 396 153 621 1684 Absorbed by Shields 6314 | . . . 129 75 . 92 110 75 . 45 165 156 46 . 271 123 299 192 64 591 80 58 288 245 . 329 653 283 1027 918 Redirected to Core 7760 | . 162 18 689 95 . 196 320 120 . 79 249 280 90 . 452 65 143 120 42 1360 57 40 182 127 . 189 374 153 602 1556 Core Remaining (%) 83 | 100 . 100 . . . 95 . 100 . . . . . . 91 . . . . 24 49 . . . . 100 87 90 . . Volleys Fired 716 | . 46 . 84 14 . 18 41 40 4 22 36 16 10 . 43 18 29 27 10 38 12 2 21 19 1 26 30 25 65 19 Largest 4 | . 1 . 2 2 . 3 3 3 3 3 3 3 3 . 3 3 3 3 3 3 3 3 3 3 1 4 4 4 4 3 Hottest 311 | . 60 . 112 112 . 168 168 168 168 168 182 182 182 . 182 182 182 182 182 216 182 182 182 182 105 260 308 276 311 291 Shots Fired 1484 | . 46 . 92 26 . 40 111 110 12 45 102 41 24 . 110 46 75 47 30 85 34 6 37 34 1 70 48 60 126 26 Gun 161 | . . . . . . . . . . 9 4 . . . . . . . . . . . . . . 62 26 33 27 . Cannon 1263 | . 46 . 86 24 . 40 111 105 12 36 98 36 21 . 106 42 71 35 30 85 34 6 33 27 1 8 22 27 96 25 Launcher 51 | . . . 6 2 . . . . . . . 5 3 . 4 4 . 12 . . . . 4 7 . . . . 3 1 Special 9 | . . . . . . . . 5 . . . . . . . . 4 . . . . . . . . . . . . . Kinetic 13 | . . . . . . . . . . 9 4 . . . . . . . . . . . . . . . . . . . Thermal 274 | . 46 . 68 . . . . . . . . . . . 6 . . 5 . 22 1 . 3 1 1 8 23 14 62 14 Explosive 8 | . . . 6 2 . . . . . . . . . . . . . . . . . . . . . . . . . . Electromagnetic 1180 | . . . 18 24 . 40 111 105 12 36 98 41 24 . 104 46 71 42 30 63 33 6 34 33 . 62 25 46 64 12 Robot Hit Streak 69 | . 8 . 12 13 . 33 51 69 17 18 29 25 25 . 35 35 19 25 14 27 16 8 8 24 . 30 12 16 22 12 Robot Miss Streak 5 | . 2 . 3 2 . 1 1 1 . 1 1 2 1 . 2 1 2 2 2 2 1 1 1 1 . 5 1 1 3 2 Penetration Max . | . . . . . . . . . . . . . . . . . . . . . . . . . . . . . . . Secondary Targets . | . . . . . . . . . . . . . . . . . . . . . . . . . . . . . . . Shots Hit Robots 1050 | . 31 1 68 19 . 35 87 78 10 25 64 33 19 1 73 34 68 23 23 50 27 5 24 28 . 46 37 46 74 21 Core Hits 582 | . 16 1 46 10 . 17 39 34 6 15 35 21 12 . 39 25 20 21 10 34 16 3 19 19 . 18 16 18 59 13 Critical Hits 20 | . 1 . 4 . . . . 1 . . 1 . . . 1 1 1 1 . 1 . . . 1 . 2 1 2 1 1 Critical Kills 8 | . . . 1 . . . . 1 . . . . . . . 1 1 . . . . . . . . . 1 2 1 . Critical Parts Destroyed 11 | . 1 . 3 . . . . . . . 1 . . . 1 . . . . 1 . . . 1 . 2 . . . 1 Melee Attacks 13 | . . 6 . . . . . . . . . . . 1 . . 6 . . . . . . . . . . . . . Impact . | . . . . . . . . . . . . . . . . . . . . . . . . . . . . . . . Slashing 6 | . . 6 . . . . . . . . . . . . . . . . . . . . . . . . . . . . Piercing . | . . . . . . . . . . . . . . . . . . . . . . . . . . . . . . . Sneak Attacks 8 | . . 1 . . . . . . . . . . . 1 . . 6 . . . . . . . . . . . . . Combat Hostiles . | . . . . . . . . . . . . . . . . . . . . . . . . . . . . . . . Follow-up Attacks . | . . . . . . . . . . . . . . . . . . . . . . . . . . . . . . . Damage Inflicted 35822 | . 568 66 2155 592 . 1000 2474 2184 864 621 1718 1118 364 . 2393 1542 1751 1337 590 2291 797 122 1085 1417 . 1181 1398 1120 4020 1054 Guns 2488 | . . . . . . . . . . 154 80 . . . . . . . . . . . . . . 941 408 465 440 . Cannons 24220 | . 568 . 1471 388 . 970 2276 2003 193 381 1257 616 143 . 1850 807 1631 557 590 1476 656 122 565 598 . 211 893 645 2445 908 Explosions 8979 | . . . 676 204 . 30 198 181 671 86 381 502 221 . 543 735 120 780 . 780 141 . 520 803 . 29 97 . 1135 146 Melee 66 | . . 66 . . . . . . . . . . . . . . . . . . . . . . . . . . . . Ramming 69 | . . . 8 . . . . . . . . . . . . . . . . 35 . . . 16 . . . 10 . . Kinetic 234 | . . . . . . . . . . 154 80 . . . . . . . . . . . . . . . . . . . Thermal 10962 | . 568 . 1151 . . 30 113 181 671 86 381 176 130 . 610 304 120 331 . 405 141 . 163 315 . 240 1061 444 2648 693 Explosive 965 | . . . 676 204 . . 85 . . . . . . . . . . . . . . . . . . . . . . . Electromagnetic 23526 | . . . 320 388 . 970 2276 2003 193 381 1257 942 234 . 1783 1238 1631 1006 590 1851 656 122 922 1086 . 941 337 666 1372 361 Impact . | . . . . . . . . . . . . . . . . . . . . . . . . . . . . . . . Slashing 66 | . . 66 . . . . . . . . . . . . . . . . . . . . . . . . . . . . Piercing . | . . . . . . . . . . . . . . . . . . . . . . . . . . . . . . . Highest Corruption 34 | . . . . . . . 1 1 1 3 6 6 7 7 7 . 3 1 . 24 . . 1 2 7 9 8 3 13 34 Average Corruption 5 | . . . . . . . 1 1 1 1 3 6 6 7 7 . 1 1 . 5 . . 1 1 3 8 4 1 11 17 Corruption Purged 20 | . . . . . . . . . . . . . . . . . 4 1 . 3 . . 1 2 . 2 3 . 1 3 Effects 224 | . . . . . . . 4 5 . 4 21 18 18 4 36 . 4 1 . 5 . . 1 2 3 24 10 . 33 31 Message Errors 31 | . . . . . . . . 4 . 1 2 2 2 . 7 . . . . . . . 1 1 1 3 2 . 3 2 Matter Fused 41 | . . . . . . . . . . . 5 4 2 1 9 . 2 . . 2 . . . . 1 4 1 . 4 6 Heat Flow Errors 23 | . . . . . . . . . . 2 3 3 4 . 3 . . . . . . . . . . 1 2 . 4 1 Energy Discharges 27 | . . . . . . . . . . . 6 1 2 . 3 . 1 1 . 1 . . . . 1 3 1 . 3 4 Parts Rejected 3 | . . . . . . . . . . . . . . . 1 . . . . . . . . . . . . . . 2 Data Loss (minor) 31 | . . . . . . . 3 . . . 4 4 4 3 3 . . . . . . . . 1 . 5 2 . 1 1 Data Loss (major) 9 | . . . . . . . . . . . . . . . 2 . . . . 1 . . . . . 1 1 . 3 1 Misfires 9 | . . . . . . . . . . . . 3 1 . 2 . . . . 1 . . . . . . . . 1 1 Alerts 2 | . . . . . . . . . . . . . . . . . . . . . . . . . . . . . 1 1 Misdirections 7 | . . . . . . . . . . . . . . . . . . . . . . . . . . . . . 2 5 Targeting Errors 30 | . . . . . . . 1 1 . . 1 1 2 . 5 . 1 . . . . . . . . 3 1 . 10 4 Weapon Failures 11 | . . . . . . . . . . 1 . . 1 . 1 . . . . . . . . . . 4 . . 1 3 Overload Shots 2 | . . . . . . . . . . . . . . . . . . . . . . . . . . . 2 . . . Effects 1 | . . . . . . . . . . . . . . . . . . . . . . . . . . . 1 . . . Meltdown 1 | . . . . . . . . . . . . . . . . . . . . . . . . . . . 1 . . . Overflow Damage 967 | . 7 . 58 61 . . 82 32 33 . 59 . 28 . 29 43 39 17 . 63 16 . 16 21 . . 44 60 249 10 Projectiles 480 | . 7 . 20 14 . . 14 14 17 . 14 . . . 15 39 39 17 . 42 10 . 16 . . . 44 60 88 10 Explosions 473 | . . . 38 47 . . 68 18 16 . 45 . 28 . 14 4 . . . 21 6 . . 7 . . . . 161 . Melee 14 | . . . . . . . . . . . . . . . . . . . . . . . . 14 . . . . . . Knockbacks 1 | . . . . . . . . . . . . . . . . . . . . 1 . . . . . . . . . . Impact 1 | . . . . . . . . . . . . . . . . . . . . 1 . . . . . . . . . . Kinetic . | . . . . . . . . . . . . . . . . . . . . . . . . . . . . . . . Secondary . | . . . . . . . . . . . . . . . . . . . . . . . . . . . . . . . Self-Inflicted Damage 1078 | . . . 152 5 . . 130 . . . . 67 63 . 8 . . . . 244 38 . 27 83 . . 81 5 171 4 Shots 28 | . . . 5 1 . . 2 . . . . 2 1 . 1 . . . . 3 1 . 2 4 . . 1 . 4 1 Rammed 6 | . . . 2 . . . . . . . . . . . . . . . . 2 . . . 1 . . . 1 . . Targets Rammed 7 | . . . 3 . . . . . . . . . . . . . . . . 2 . . . 1 . . . 1 . . Kicked 1 | . . . 1 . . . . . . . . . . . . . . . . . . . . . . . . . . . Crushed . | . . . . . . . . . . . . . . . . . . . . . . . . . . . . . . . Highest Temperature 687 | . . . 436 3 . 72 254 50 . 133 172 142 154 . 405 210 246 116 256 364 232 264 687 555 52 391 212 159 203 228 Average Temperature 102 | . . . 223 3 . 33 60 16 . 84 43 60 56 . 147 77 75 53 122 87 101 133 192 173 52 151 50 59 73 60 Received Heat Transfer 1547 | . 66 . 182 88 . 156 168 48 . 30 162 63 . . 147 27 69 18 4 73 . 4 23 29 . 20 4 16 . 150 Effects 14 | . . . . . . . . . . . . . . . 1 . . . . 1 . . 6 4 . 2 . . . . Shutdowns 6 | . . . . . . . . . . . . . . . . . . . . . . . 3 1 . 2 . . . . Energy Bleed 1 | . . . . . . . . . . . . . . . . . . . . . . . 1 . . . . . . . Interference 3 | . . . . . . . . . . . . . . . . . . . . 1 . . . 2 . . . . . . Matter Decay 1 | . . . . . . . . . . . . . . . . . . . . . . . 1 . . . . . . . Damage (minor) 3 | . . . . . . . . . . . . . . . 1 . . . . . . . 1 1 . . . . . . Siege Activations . | . . . . . . . . . . . . . . . . . . . . . . . . . . . . . . . Robots Corrupted 47 | . . . . 2 . 3 3 1 . . 3 3 . . 3 2 4 6 1 2 . . 2 3 . 4 2 2 . 1 Combat Hostiles 44 | . . . . 2 . 3 3 1 . . 3 3 . . 3 1 4 6 1 1 . . 2 3 . 3 2 2 . 1 Parts Fried 196 | . . . 8 3 . 6 21 16 . . 8 5 3 . 15 8 18 7 5 22 5 2 6 6 . 4 4 8 11 5 Impact Corruptions 1 | . . . . . . . . . . . . . . . . . . . . . . . . 1 . . . . . . Robots Melted . | . . . . . . . . . . . . . . . . . . . . . . . . . . . . . . . Combat Hostiles . | . . . . . . . . . . . . . . . . . . . . . . . . . . . . . . . Parts Melted 22 | . 2 . 2 . . . . . 2 . . . . . . . . . . . . . . . . . 1 2 12 1 Heat Transferred 10604 | . 1184 . 2072 . . 50 150 200 550 150 350 200 100 . 525 350 100 250 . 325 100 . 100 250 . 198 809 333 1858 400 Parts Sabotaged . | . . . . . . . . . . . . . . . . . . . . . . . . . . . . . . . Parts Stolen . | . . . . . . . . . . . . . . . . . . . . . . . . . . . . . . . Parts Stripped . | . . . . . . . . . . . . . . . . . . . . . . . . . . . . . . . Power Chain Reactions 43 | . . . . . . 1 2 3 4 1 . 3 2 . 3 4 1 1 . 3 3 . 1 3 . 1 1 . 5 1 Missiles Intercepted . | . . . . . . . . . . . . . . . . . . . . . . . . . . . . . . . Alert | -11 -10 -10 -9 -9 -9 -8 -8 -8 -7 -7 -7 -7 -7 -7 -6 -6 -6 -6 -6 -6 -5 -4 -4 -4 -4 -3 -3 -2 -1 -1 ------- Run | Scr Mat Min Mat Min Exi Min Mat Sto Fac Gar Fac Low Low Dat Pro Fac Ext Cet Arc Hub Fac Fac Upp Upp War Pro Res Res Acc Com Peak Influence 752 | . 157 81 587 236 . 174 507 737 434 686 647 . . . . 504 298 685 340 704 469 229 . . . . 199 218 752 223 Average Influence 224 | . 51 16 245 167 . 69 193 483 212 513 426 . . . . 214 118 476 311 207 161 151 . . . . 97 117 294 112 Maximum Alert Level 3 | . . . 2 1 . . 2 3 2 2 2 . . . . 2 1 2 1 3 2 1 . . . . . 1 3 1 Low Security (%) 58 | 100 100 100 47 74 . 100 69 . 71 . 1 . . . . 57 72 7 . 67 60 60 . . . . 100 97 58 88 Level 1 18 | . . . 22 25 . . 20 31 4 35 42 . . . . 20 27 8 100 20 18 39 . . . . . 2 6 11 Level 2 20 | . . . 29 . . . 9 53 24 64 55 . . . . 22 . 83 . 12 20 . . . . . . . 20 . Level 3 1 | . . . . . . . . 15 . . . . . . . . . . . . . . . . . . . . 15 . Level 4 . | . . . . . . . . . . . . . . . . . . . . . . . . . . . . . . . Level 5 . | . . . . . . . . . . . . . . . . . . . . . . . . . . . . . . . High Security . | . . . . . . . . . . . . . . . . . . . . . . . . . . . . . . . Max Security . | . . . . . . . . . . . . . . . . . . . . . . . . . . . . . . . Squads Dispatched 40 | . 2 . 2 . . . 4 4 2 . 7 . . . 1 1 3 1 . 3 1 1 . . . . 2 1 3 2 Investigation 14 | . 1 . . . . . 3 2 1 . 3 . . . . 1 1 1 . . 1 . . . . . . . . . Extermination 8 | . . . . . . . . . . . 1 . . . . . . . . 1 . . . . . . 2 1 2 1 Reinforcement 11 | . 1 . 2 . . . 1 . . . 1 . . . . . 2 . . 1 . 1 . . . . . . 1 1 Assault 3 | . . . . . . . . 2 . . . . . . 1 . . . . . . . . . . . . . . . Garrison 4 | . . . . . . . . . 1 . 2 . . . . . . . . 1 . . . . . . . . . . Intercept . | . . . . . . . . . . . . . . . . . . . . . . . . . . . . . . . Construction Impeded 2 | . . . . . . . . . . . . . . . . . 1 . . . . . . . . . . . 1 . Haulers Reinforced . | . . . . . . . . . . . . . . . . . . . . . . . . . . . . . . . Stealth | -11 -10 -10 -9 -9 -9 -8 -8 -8 -7 -7 -7 -7 -7 -7 -6 -6 -6 -6 -6 -6 -5 -4 -4 -4 -4 -3 -3 -2 -1 -1 --------- Run | Scr Mat Min Mat Min Exi Min Mat Sto Fac Gar Fac Low Low Dat Pro Fac Ext Cet Arc Hub Fac Fac Upp Upp War Pro Res Res Acc Com Distress Signals 15 | . 2 . 2 . . . 2 2 . . . . . . . . 3 1 1 1 . . . . . . . . 1 . Communications Jammed . | . . . . . . . . . . . . . . . . . . . . . . . . . . . . . . . Distress Signals . | . . . . . . . . . . . . . . . . . . . . . . . . . . . . . . . Times Spotted 424 | . 18 3 34 9 . 9 37 24 5 11 16 13 3 . 34 12 22 18 6 36 6 1 15 16 . 8 8 7 37 16 Peak Tracking Total 12 | . 3 3 12 3 . 3 5 5 4 4 3 9 1 . 7 5 4 5 2 10 3 3 9 7 . 3 4 2 7 7 Tactical Retreats 29 | . 1 . . . . . 7 1 1 1 1 . . . 2 . . 1 . 4 1 . . 3 . 1 . . 3 2 Traps | -11 -10 -10 -9 -9 -9 -8 -8 -8 -7 -7 -7 -7 -7 -7 -6 -6 -6 -6 -6 -6 -5 -4 -4 -4 -4 -3 -3 -2 -1 -1 ------- Run | Scr Mat Min Mat Min Exi Min Mat Sto Fac Gar Fac Low Low Dat Pro Fac Ext Cet Arc Hub Fac Fac Upp Upp War Pro Res Res Acc Com Traps Triggered 22 | . . . . . . . . 1 . 3 4 . . . . . 5 . . . 2 1 . . . . . . 3 3 Indirectly . | . . . . . . . . . . . . . . . . . . . . . . . . . . . . . . . Trap Hack Attempts . | . . . . . . . . . . . . . . . . . . . . . . . . . . . . . . . Triggered . | . . . . . . . . . . . . . . . . . . . . . . . . . . . . . . . Disarmed . | . . . . . . . . . . . . . . . . . . . . . . . . . . . . . . . Reprogrammed . | . . . . . . . . . . . . . . . . . . . . . . . . . . . . . . . Reused . | . . . . . . . . . . . . . . . . . . . . . . . . . . . . . . . Traps Extracted . | . . . . . . . . . . . . . . . . . . . . . . . . . . . . . . . Installed . | . . . . . . . . . . . . . . . . . . . . . . . . . . . . . . . Triggered 1 | . . . . . . . . . . . . . . . . . . . . . . . . . . 1 . . . . Machines | -11 -10 -10 -9 -9 -9 -8 -8 -8 -7 -7 -7 -7 -7 -7 -6 -6 -6 -6 -6 -6 -5 -4 -4 -4 -4 -3 -3 -2 -1 -1 ---------- Run | Scr Mat Min Mat Min Exi Min Mat Sto Fac Gar Fac Low Low Dat Pro Fac Ext Cet Arc Hub Fac Fac Upp Upp War Pro Res Res Acc Com Machines Disabled 49 | . . . 2 . . . 4 2 7 2 11 . . . 1 1 1 4 2 7 . . . 4 . . . . . 1 Max in Single Turn 7 | . . . 2 . . . 1 1 7 2 6 . . . 1 1 1 1 . 5 . . . 3 . . . . . 1 Garrison Access 3 | . . . . . . . . . . . 1 . . . . . . . . . 1 . . . . . . . 1 . Phase Generator 1 | . . . . . . . . . . 1 . . . . . . . . . . . . . . . . . . . . Network Hub 4 | . . . . . . . . . . . . . . . . . . . . 4 . . . . . . . . . . Machines Sabotaged . | . . . . . . . . . . . . . . . . . . . . . . . . . . . . . . . Garrisons Compromised . | . . . . . . . . . . . . . . . . . . . . . . . . . . . . . . . Overloaded Fab Kills . | . . . . . . . . . . . . . . . . . . . . . . . . . . . . . . . Fab Network Shutdowns 2 | . . . . . . . . . . . . . . . . 1 . . . . 1 . . . . . . . . . Hacking | -11 -10 -10 -9 -9 -9 -8 -8 -8 -7 -7 -7 -7 -7 -7 -6 -6 -6 -6 -6 -6 -5 -4 -4 -4 -4 -3 -3 -2 -1 -1 --------- Run | Scr Mat Min Mat Min Exi Min Mat Sto Fac Gar Fac Low Low Dat Pro Fac Ext Cet Arc Hub Fac Fac Upp Upp War Pro Res Res Acc Com Machines Accessed 94 | . 6 . 6 1 2 1 7 7 2 . 6 1 . 4 . 5 10 4 . 12 6 3 . . . . 3 . 4 4 Terminals 73 | . 6 . 5 . . 1 7 7 . . 3 . . . . 4 10 4 . 10 3 3 . . . . 3 . 3 4 Fabricators 4 | . . . . . . . . . 1 . 1 . . . . 1 . . . . 1 . . . . . . . . . Repair Stations . | . . . . . . . . . . . . . . . . . . . . . . . . . . . . . . . Recycling Units 2 | . . . 1 . . . . . . . . . . . . . . . . . 1 . . . . . . . . . Scanalyzers . | . . . . . . . . . . . . . . . . . . . . . . . . . . . . . . . Garrison Access 7 | . . . . . . . . . 1 . 2 . . . . . . . . 2 1 . . . . . . . 1 . Total Hacks 318 | . 25 . 16 1 5 3 19 20 3 . 15 1 . 27 . 16 30 15 . 31 23 27 . . . . 15 . 18 8 Successful 177 | . 9 . 7 1 5 1 6 11 1 . 11 1 . 27 . 6 19 9 . 18 15 14 . . . . 3 . 9 4 Failed 140 | . 16 . 9 . . 2 13 9 2 . 4 . . . . 10 10 6 . 13 8 13 . . . . 12 . 9 4 Catastrophic 23 | . 4 . 3 . . . 3 1 1 . 1 . . . . . 1 . . 1 . 4 . . . . 1 . 3 . Database Lockouts 1 | . . . . . . . . . . . . . . . . . 1 . . . . . . . . . . . . . Manual 198 | . 25 . 11 . 1 3 15 10 . . 8 . . . . 6 25 2 . 24 9 23 . . . . 15 . 16 5 Terminals 256 | . 25 . 15 . . 3 19 20 . . 9 . . . . 13 30 15 . 28 13 27 . . . . 15 . 16 8 Fabricators 10 | . . . . . . . . . 2 . 1 . . . . 3 . . . . 4 . . . . . . . . . Repair Stations . | . . . . . . . . . . . . . . . . . . . . . . . . . . . . . . . Recycling Units 5 | . . . 1 . . . . . . . . . . . . . . . . . 4 . . . . . . . . . Scanalyzers . | . . . . . . . . . . . . . . . . . . . . . . . . . . . . . . . Garrison Access 13 | . . . . . . . . . 1 . 5 . . . . . . . . 3 2 . . . . . . . 2 . Terminal Hacks 116 | . 6 . 5 1 5 1 5 8 . . 4 1 . 27 . 4 12 9 . 7 3 11 . . . . 1 . 4 2 Record 25 | . . . . . 4 . . . . . . . . 11 . . . 9 . 1 . . . . . . . . . . Part Schematic 11 | . . . . . . . . 1 . . . . . 6 . . . . . 2 . 2 . . . . . . . . Robot Schematic 7 | . . . . . . . . . . . . . . 7 . . . . . . . . . . . . . . . . Robot Analysis 9 | . 2 . . . . . 3 . . . . . . . . . 2 . . . . 2 . . . . . . . . Prototype ID Bank 8 | . 1 . . . . . . 1 . . . . . 3 . . 1 . . 1 . 1 . . . . . . . . Open Door 4 | . . . . 1 . . . 1 . . . 1 . . . . . . . . . . . . . . . . . 1 Level Access Points 2 | . . . . . . . . . . . 1 . . . . . . . . . . 1 . . . . . . . . Branch Access Points 6 | . . . 1 . . . 1 . . . 1 . . . . 1 . . . 1 . 1 . . . . . . . . Terminal Index 5 | . . . . . . . . . . . . . . . . 1 1 . . 1 . 1 . . . . 1 . . . Alert Level 1 | . . . 1 . . . . . . . . . . . . . . . . . . . . . . . . . . . Unreport Threat 27 | . 2 . 3 . . 1 1 3 . . 2 . . . . 2 5 . . . 3 1 . . . . . . 4 . Locate Traps 3 | . . . . . . . . 2 . . . . . . . . 1 . . . . . . . . . . . . . Patrol Status 1 | . . . . . . . . . . . . . . . . . . . . . . 1 . . . . . . . . Garrison Status 1 | . . . . . . . . . . . . . . . . . . . . . . 1 . . . . . . . . Recall Investigation 1 | . 1 . . . . . . . . . . . . . . . . . . . . . . . . . . . . . Hauler Manifests 2 | . . . . . . . . . . . . . . . . . 1 . . 1 . . . . . . . . . . Zone Layout 1 | . . . . . . . . . . . . . . . . . 1 . . . . . . . . . . . . . EX-Prototype ID Bank 1 | . . . . . 1 . . . . . . . . . . . . . . . . . . . . . . . . . Disengage Seal 1 | . . . . . . . . . . . . . . . . . . . . . . . . . . . . . . 1 Fabricator Hacks 7 | . . . . . . . . . . . 1 . . . . 2 . . . . 4 . . . . . . . . . Load Schematic 3 | . . . . . . . . . . . . . . . . 1 . . . . 2 . . . . . . . . . Build 4 | . . . . . . . . . . . 1 . . . . 1 . . . . 2 . . . . . . . . . Repair Station Hacks . | . . . . . . . . . . . . . . . . . . . . . . . . . . . . . . . Recycling Unit Hacks 2 | . . . 1 . . . . . . . . . . . . . . . . . 1 . . . . . . . . . Report Inventory 2 | . . . 1 . . . . . . . . . . . . . . . . . 1 . . . . . . . . . Scanalyzer . | . . . . . . . . . . . . . . . . . . . . . . . . . . . . . . . Garrison Access Hacks 9 | . . . . . . . . . 1 . 4 . . . . . . . . . 2 . . . . . . . 2 . Unlock Access 2 | . . . . . . . . . 1 . 1 . . . . . . . . . . . . . . . . . . . Seal Access 3 | . . . . . . . . . . . 1 . . . . . . . . . 1 . . . . . . . 1 . Coupler Status 4 | . . . . . . . . . . . 2 . . . . . . . . . 1 . . . . . . . 1 . Unauthorized Hacks 43 | . 3 . 1 . . . 1 3 . . 2 . . . . . 7 . . 11 5 3 . . . . 2 . 3 2 Terminals 40 | . 3 . 1 . . . 1 3 . . 1 . . . . . 7 . . 9 5 3 . . . . 2 . 3 2 Track 11 | . 1 . . . . . . 1 . . . . . . . . 1 . . 6 2 . . . . . . . . . Assimilate 3 | . . . 1 . . . 1 . . . . . . . . . . . . . . . . . . . . . 1 . Botnet 26 | . 2 . . . . . . 2 . . 1 . . . . . 6 . . 3 3 3 . . . . 2 . 2 2 Fabricators . | . . . . . . . . . . . . . . . . . . . . . . . . . . . . . . . Repair Stations . | . . . . . . . . . . . . . . . . . . . . . . . . . . . . . . . Recycling Units . | . . . . . . . . . . . . . . . . . . . . . . . . . . . . . . . Scanalyzers . | . . . . . . . . . . . . . . . . . . . . . . . . . . . . . . . Garrison Access 3 | . . . . . . . . . . . 1 . . . . . . . . 2 . . . . . . . . . . Reprogram 2 | . . . . . . . . . . . . . . . . . . . . 2 . . . . . . . . . . Eject 1 | . . . . . . . . . . . 1 . . . . . . . . . . . . . . . . . . . Data Cores Recovered 4 | . 2 . 1 . . . 1 . . . . . . . . . . . . . . . . . . . . . . . Used 2 | . 2 . . . . . . . . . . . . . . . . . . . . . . . . . . . . . Hacking Detections 55 | . 6 . 5 . . 1 5 5 1 . 3 . . . . 4 3 4 . 9 2 1 . . . . 3 . 1 2 Full Trace Events 14 | . 3 . 2 . . . 2 2 1 . 2 . . . . 1 . 1 . . . . . . . . . . . . Feedback Events 2 | . . . . . . . 1 . 1 . . . . . . . . . . . . . . . . . . . . . Corruption 2 | . . . . . . . 1 . 1 . . . . . . . . . . . . . . . . . . . . . Feedback Blocked . | . . . . . . . . . . . . . . . . . . . . . . . . . . . . . . . Robot Schematics Acquired 7 | . . . . . . . . . . . . . . 7 . . . . . . . . . . . . . . . . Robots Built 1 | . . . . . . . . . . . 1 . . . . . . . . . . . . . . . . . . . Matter 153 | . . . . . . . . . . . 153 . . . . . . . . . . . . . . . . . . . Time 81 | . . . . . . . . . . . 81 . . . . . . . . . . . . . . . . . . . Total Robot Build Rating 1 | . . . . . . . . . . . 1 . . . . . . . . . . . . . . . . . . . Part Schematics Acquired 11 | . . . . . . . . 1 . . . . . 6 . . . . . 2 . 2 . . . . . . . . Parts Built 4 | . . . . . . . . . . . . . . . . 1 . . . . 3 . . . . . . . . . Matter 720 | . . . . . . . . . . . . . . . . 318 . . . . 402 . . . . . . . . . Time 370 | . . . . . . . . . . . . . . . . 169 . . . . 201 . . . . . . . . . Total Part Build Rating 21 | . . . . . . . . . . . . . . . . 6 . . . . 15 . . . . . . . . . Parts Repaired . | . . . . . . . . . . . . . . . . . . . . . . . . . . . . . . . Time . | . . . . . . . . . . . . . . . . . . . . . . . . . . . . . . . Parts Recycled . | . . . . . . . . . . . . . . . . . . . . . . . . . . . . . . . Recycled Matter . | . . . . . . . . . . . . . . . . . . . . . . . . . . . . . . . Retrieved Matter . | . . . . . . . . . . . . . . . . . . . . . . . . . . . . . . . Retrieved Components . | . . . . . . . . . . . . . . . . . . . . . . . . . . . . . . . Parts Scanalyzed . | . . . . . . . . . . . . . . . . . . . . . . . . . . . . . . . Part Schematics Acquired . | . . . . . . . . . . . . . . . . . . . . . . . . . . . . . . . Parts Damaged . | . . . . . . . . . . . . . . . . . . . . . . . . . . . . . . . Bothacking | -11 -10 -10 -9 -9 -9 -8 -8 -8 -7 -7 -7 -7 -7 -7 -6 -6 -6 -6 -6 -6 -5 -4 -4 -4 -4 -3 -3 -2 -1 -1 ------------ Run | Scr Mat Min Mat Min Exi Min Mat Sto Fac Gar Fac Low Low Dat Pro Fac Ext Cet Arc Hub Fac Fac Upp Upp War Pro Res Res Acc Com Used RIF Installer 1 | . . . . . . . . . . 1 . . . . . . . . . . . . . . . . . . . . Robots Hacked 5 | . . . . . . . . 3 . . . . . 1 . . 1 . . . . . . . . . . . . . Non-combat 4 | . . . . . . . . 3 . . . . . . . . 1 . . . . . . . . . . . . . Combat 1 | . . . . . . . . . . . . . . 1 . . . . . . . . . . . . . . . . Robot Hacks Applied 6 | . . . . . . . . 3 . . . . . 1 . . 2 . . . . . . . . . . . . . parse_system 4 | . . . . . . . . 3 . . . . . 1 . . . . . . . . . . . . . . . . recall_investigation 1 | . . . . . . . . . . . . . . . . . 1 . . . . . . . . . . . . . streamctrl_low 1 | . . . . . . . . . . . . . . . . . 1 . . . . . . . . . . . . . Relay Couplers Released 1 | . . . . . . . . . . . 1 . . . . . . . . . . . . . . . . . . . Ejected 1 | . . . . . . . . . . . 1 . . . . . . . . . . . . . . . . . . . Attached 1 | . . . . . . . . . . . . . . . . . 1 . . . . . . . . . . . . . Robots Rewired 11 | . . . . . . . . . . . . 2 . . 2 . 7 . . . . . . . . . . . . . Allies Hacked . | . . . . . . . . . . . . . . . . . . . . . . . . . . . . . . . Hacks Repelled . | . . . . . . . . . . . . . . . . . . . . . . . . . . . . . . . Allies | -11 -10 -10 -9 -9 -9 -8 -8 -8 -7 -7 -7 -7 -7 -7 -6 -6 -6 -6 -6 -6 -5 -4 -4 -4 -4 -3 -3 -2 -1 -1 -------- Run | Scr Mat Min Mat Min Exi Min Mat Sto Fac Gar Fac Low Low Dat Pro Fac Ext Cet Arc Hub Fac Fac Upp Upp War Pro Res Res Acc Com Total Allies 44 | . . 3 . . . . . 12 . . 1 2 . . 3 . 19 . . 3 . . . . . . . . 1 . Largest Group 11 | . . 3 3 . . . . 11 11 7 1 2 2 . 2 . 11 8 2 1 . . . . . . . . 1 . Highest-Rated Group 342 | . . 40 40 . . . . 199 199 130 9 60 60 . 94 . 342 342 180 26 . . . . . . . . 44 . Highest-Rated Ally 156 | . . 16 16 . . . . 31 29 29 9 30 30 . 94 . 156 156 148 26 . . . . . . . . 44 . Total Orders . | . . . . . . . . . . . . . . . . . . . . . . . . . . . . . . . Ally Attacks 269 | . . 8 14 . . . . 19 17 28 . . 6 . 28 . 61 85 3 . . . . . . . . . . . Total Damage 5263 | . . 67 92 . . . . 271 225 267 . . 140 . 723 . 1520 1933 25 . . . . . . . . . . . Kills 47 | . . 3 . . . . . 3 2 5 . . . . 7 . 10 17 . . . . . . . . . . . . Allies Corrupted 3 | . . . . . . . . . . . . . 1 . . . 2 . . . . . . . . . . . . . Allies Melted . | . . . . . . . . . . . . . . . . . . . . . . . . . . . . . . . Intel | -11 -10 -10 -9 -9 -9 -8 -8 -8 -7 -7 -7 -7 -7 -7 -6 -6 -6 -6 -6 -6 -5 -4 -4 -4 -4 -3 -3 -2 -1 -1 ------- Run | Scr Mat Min Mat Min Exi Min Mat Sto Fac Gar Fac Low Low Dat Pro Fac Ext Cet Arc Hub Fac Fac Upp Upp War Pro Res Res Acc Com Robot Analysis Total 9 | . 2 . . . . . 3 . . . . . . . . . 2 . . . . 2 . . . . . . . . Derelict Logs Recovered 7 | . . 1 . . . . . . . . . 1 2 . 1 . . . . . . . . 2 . . . . . . Drone Launches . | . . . . . . . . . . . . . . . . . . . . . . . . . . . . . . . Drone Recoveries . | . . . . . . . . . . . . . . . . . . . . . . . . . . . . . . . Exploration | -11 -10 -10 -9 -9 -9 -8 -8 -8 -7 -7 -7 -7 -7 -7 -6 -6 -6 -6 -6 -6 -5 -4 -4 -4 -4 -3 -3 -2 -1 -1 ------------- Run | Scr Mat Min Mat Min Exi Min Mat Sto Fac Gar Fac Low Low Dat Pro Fac Ext Cet Arc Hub Fac Fac Upp Upp War Pro Res Res Acc Com Turns Passed 18144 | 15 824 547 1108 214 566 492 741 613 168 402 1248 700 542 176 1008 637 728 500 100 1389 774 228 449 749 133 496 837 400 911 449 Spaces Moved 12460 | 7 559 567 671 125 544 299 502 339 121 240 875 555 453 151 724 473 435 334 49 963 414 186 328 444 113 329 605 250 479 326 Core 245 | . . 244 . . . . . 1 . . . . . . . . . . . . . . . . . . . . . . Treads . | . . . . . . . . . . . . . . . . . . . . . . . . . . . . . . . Legs 1613 | 7 559 323 671 53 . . . . . . . . . . . . . . . . . . . . . . . . . . Wheels 10602 | . . . . 72 544 299 502 338 121 240 875 555 453 151 724 473 435 334 49 963 414 186 328 444 113 329 605 250 479 326 Hover . | . . . . . . . . . . . . . . . . . . . . . . . . . . . . . . . Flight . | . . . . . . . . . . . . . . . . . . . . . . . . . . . . . . . Fastest Speed 50 | 120 120 50 120 100 100 110 110 110 110 110 110 110 110 110 110 110 120 120 120 110 110 110 110 110 110 120 115 106 106 105 Average Speed 112 | 120 120 89 120 108 103 110 110 110 110 110 110 110 110 110 115 116 120 120 120 117 110 110 110 113 113 120 119 114 115 115 Slowest Speed 400 | 120 120 120 120 120 110 110 110 400 110 110 110 110 110 110 120 120 120 120 120 130 110 110 120 120 120 120 140 116 116 116 Overloaded Moves . | . . . . . . . . . . . . . . . . . . . . . . . . . . . . . . . Propulsion Burnouts . | . . . . . . . . . . . . . . . . . . . . . . . . . . . . . . . Robots Hopped . | . . . . . . . . . . . . . . . . . . . . . . . . . . . . . . . Cave-ins Triggered . | . . . . . . . . . . . . . . . . . . . . . . . . . . . . . . . Exploration Rate (%) 46 | 1 73 96 57 24 70 69 48 47 6 67 27 64 58 74 67 15 77 87 74 88 13 6 52 50 15 63 17 8 15 19 Regions Visited 30 Branch Regions 18 Pre-discovered Areas 4 | . . 2 . . 1 . . . . . . . . 1 . . . . . . . . . . . . . . . . Known Exits Taken 12 | . 1 1 1 . . 1 1 . 1 . 1 1 . . 1 1 . . . . . 1 . . . 1 . . . . Unknown Exits Taken 17 | 1 . . . 1 1 . . 1 . . . . 1 1 . . 1 1 1 1 1 . 1 1 1 . 1 1 1 . Scrap Searched 14 | . . 2 . . . 1 . . . . . 3 1 . 2 . . . . . . . 1 3 . 1 . . . . Spaces Dug 33 | . . 1 . . . . . . . . . . . . . . . . . 6 1 . 2 . 1 1 2 4 15 . Terrain Destroyed 859 | . . 1 24 25 . 4 39 8 31 81 46 4 17 . 12 9 6 17 . 326 15 . 17 35 1 8 15 5 97 16 Melee 1 | . . 1 . . . . . . . . . . . . . . . . . . . . . . . . . . . . Projectile 58 | . . . . . . . . . . . . . . . 1 . . . . 12 1 . 3 . 1 4 4 5 25 2 AOE 800 | . . . 24 25 . 4 39 8 31 81 46 4 17 . 11 9 6 17 . 314 14 . 14 35 . 4 11 . 72 14 Actions | -11 -10 -10 -9 -9 -9 -8 -8 -8 -7 -7 -7 -7 -7 -7 -6 -6 -6 -6 -6 -6 -5 -4 -4 -4 -4 -3 -3 -2 -1 -1 --------- Run | Scr Mat Min Mat Min Exi Min Mat Sto Fac Gar Fac Low Low Dat Pro Fac Ext Cet Arc Hub Fac Fac Upp Upp War Pro Res Res Acc Com Total 15420 | 13 668 591 885 177 547 425 605 502 147 344 1085 614 478 159 824 538 579 391 67 1145 712 209 392 672 115 391 690 329 746 380 Wait 1285 | . 28 5 32 27 . 79 31 49 15 51 144 25 2 . . 18 40 5 . 115 244 11 14 166 . 7 11 34 106 26 Move 12432 | 6 558 566 670 124 543 298 501 338 121 239 874 554 452 150 723 472 434 333 48 963 413 185 327 443 112 328 604 249 478 326 Hop . | . . . . . . . . . . . . . . . . . . . . . . . . . . . . . . . Pick Up 55 | 3 6 . 8 1 2 2 2 9 1 . 4 1 1 . 1 . 2 . . 1 3 1 . 2 . 1 2 . 1 1 Fast Attach 96 | 2 6 3 9 1 . 1 2 16 2 . 2 2 1 3 2 8 . 3 . 3 6 2 1 3 . . 9 4 3 2 Attach 16 | . . . 1 . 1 1 2 1 . . . . . . 1 . 1 . . . 2 3 . 1 . 1 1 . . . Detach 25 | 1 1 2 4 . . . . 4 1 . . . . . . 1 . . . . 2 3 . 3 . . 2 . 1 . Swap 111 | . . 4 13 2 . . . 6 . 2 5 3 2 2 5 2 5 6 . 7 2 . 5 7 2 7 4 3 14 3 Drop 130 | 1 9 2 17 3 1 2 1 23 3 . 7 4 2 3 1 5 2 4 . 3 7 2 . 4 . 1 11 4 5 3 Fire 716 | . 46 . 84 14 . 18 41 40 4 22 36 16 10 . 43 18 29 27 10 38 12 2 21 19 1 26 30 25 65 19 Melee 13 | . . 6 . . . . . . . . . . . 1 . . 6 . . . . . . . . . . . . . Ram 3 | . . . . . . . . . . . . . . . . . . . . 1 . . . 1 . . . 1 . . Kick 3 | . . . 3 . . . . . . . . . . . . . . . . . . . . . . . . . . . Crush . | . . . . . . . . . . . . . . . . . . . . . . . . . . . . . . . Escape Stasis 64 | . . . . . . . . . . 24 . . . . . . 16 . . . . . . . . . . . 24 . Rewire 36 | . . . . . . . . . . 1 . 2 . . 2 . 31 . . . . . . . . . . . . . Trap . | . . . . . . . . . . . . . . . . . . . . . . . . . . . . . . . Miscellaneous 435 | . 14 3 44 5 . 24 25 16 . 5 13 7 8 . 46 14 13 13 9 14 21 . 24 23 . 20 16 9 49 . Route ------- -11/Scrapyard -10/Materials (discovered 4 exits: *Mat x2 / *Min x2) -10/Mines (discovered 2 exits: *Mat x2) -9/Materials (discovered 3 exits: *Mat x2 / *Min) -9/Mines -9/Exiles -8/Mines -8/Materials (discovered 3 exits: *Fac / *Sto x2) -8/Storage -7/Factory -7/Garrison (discovered 2 exits: *Fac x2) -7/Factory (discovered 7 exits: *Fac x4 / *Low x2 / Gar) -7/Lower Caves -7/Lower Caves (discovered 2 exits: *Fac / *Dat) -7/Data Miner -6/Proximity Caves -6/Factory (discovered 5 exits: Fac / Low x2 / *Ext x2) -6/Extension (discovered 3 exits: *Fac x2 / *Cet) -6/Cetus (discovered 3 exits: *Fac x2 / [*Arc]) -6/Archives (discovered 3 exits: Fac / *Hub x2) -6/Hub_04(d) (discovered 4 exits: *Fac x4) -5/Factory -4/Factory (discovered 7 exits: Res x4 / *Upp x2 / Arm) -4/Upper Caves -4/Upper Caves (discovered 2 exits: *Res / [*War]) -4/Warlord -3/Proximity Caves -3/Research (discovered 2 exits: [*Res] / *Qua) -2/Research -1/Access -1/Command History --------- Turn | Location | Event 1 | -11/Scrapyard | Upgraded with Propulsion slot (x1) 1 | -11/Scrapyard | Upgraded with Utility slot (x1) 1 | -11/Scrapyard | Discovered new exit (range 1) 16 | -11/Scrapyard | Entered Materials 51 | -10/Materials | Discovered new exit (range 4) 186 | -10/Materials | Identified exit to Mines 307 | -10/Materials | Build established: Mutant 513 | -10/Materials | Discovered new exit (range 5) 518 | -10/Materials | Identified exit to Materials 569 | -10/Materials | Discovered exit to Materials (range 16) 612 | -10/Materials | Discovered exit to Mines (range 5) 840 | -10/Materials | Entered Mines 842 | -10/Mines | Reached level 2 885 | -10/Mines | Assisted by bots powering up and referring to "LRC-V3" 909 | -10/Mines | Met a Derelict bent on vengeance 992 | -10/Mines | Assisted by bots powering up and referring to "LRC-V3" 1000 | -10/Mines | Destroyed YI-UF0 1004 | -10/Mines | Found Prototype Storage 1004 | -10/Mines | Identified YI-UF0's Bottomless Matter Pit 1046 | -10/Mines | Discovered exit to Materials (range 10) 1285 | -10/Mines | Build established: Scavenger-Mutant 1348 | -10/Mines | Learned location of Zion (-6) 1377 | -10/Mines | Discovered exit to Materials (range 3) 1380 | -10/Mines | Learned location of Storage (-8) 1387 | -10/Mines | Entered Materials 1387 | -9/Materials | Accompanied by 3 allies 1389 | -9/Materials | Reached level 3 1604 | -9/Materials | Core integrity fell below 50% 1605 | -9/Materials | Reached level 4 1639 | -9/Materials | Destroyed 14 combat bots 1730 | -9/Materials | Reached level 5 1770 | -9/Materials | Discovered new exit (range 4) 1795 | -9/Materials | Identified exit to Materials 1909 | -9/Materials | Build established: Mutant 2077 | -9/Materials | Upgraded with Utility slot (x1) 2077 | -9/Materials | Upgraded with Weapon slot (x1) 2099 | -9/Materials | Discovered exit to Materials (range 13) 2127 | -9/Materials | Identified exit to Mines 2495 | -9/Materials | Entered Mines 2497 | -9/Mines | Reached level 6 2581 | -9/Mines | Met a Derelict who couldn't figure out how to use a Trap Extractor 2633 | -9/Mines | Deemed a non-threat by the Exiles lab entrance 2633 | -9/Mines | Discovered new exit (range 5) 2709 | -9/Mines | Entered Exiles 2711 | -9/Exiles | Reached level 7 2734 | -9/Exiles | Met 8R-AWN 2750 | -9/Exiles | Met EX-HEX 2777 | -9/Exiles | Met EX-BIN 2828 | -9/Exiles | Aligned with FarCom system 2829 | -9/Exiles | Given EX-Vault access code 2853 | -9/Exiles | Opened EX-Vault 2863 | -9/Exiles | Found Cloak of Protection 2893 | -9/Exiles | Upgraded with Utility slot (x1) 2897 | -9/Exiles | Warned to stay clear of 0b10 Research branches 3003 | -9/Exiles | Met EX-DEC 3055 | -9/Exiles | Discovered new exit (range 14) 3275 | -9/Exiles | Left Exiles lab with Cloak of Protection 3275 | -9/Exiles | Entered Mines 3488 | -8/Mines | Reached level 8 3535 | -8/Mines | Upgraded with Weapon slot (x1) 3747 | -8/Mines | Discovered exit to Materials (range 8) 3767 | -8/Mines | Entered Materials 3769 | -8/Materials | Reached level 9 3770 | -8/Materials | Upgraded with Power slot (x1) 3810 | -8/Materials | Build established: Tank 3915 | -8/Materials | Identified exit to Storage 4165 | -8/Materials | Reached level 10 4172 | -8/Materials | Upgraded with Utility slot (x1) 4199 | -8/Materials | Discovered new exit (range 15) 4320 | -8/Materials | Reached level 11 4323 | -8/Materials | Upgraded with Power slot (x1) 4508 | -8/Materials | Entered Storage 4551 | -8/Storage | Reached level 12 4655 | -8/Storage | Build established: Generator-Tank 4921 | -8/Storage | Met a pair of Derelict thieves 5011 | -8/Storage | Reached level 13 5032 | -8/Storage | Destroyed 11 combat bots 5081 | -8/Storage | Discovered new exit (range 6) 5093 | -8/Storage | Assisted by bots powering up and referring to "LRC-V3" 5121 | -8/Storage | Entered Factory 5121 | -7/Factory | Accompanied by 11 allies 5123 | -7/Factory | Reached level 14 5237 | -7/Factory | Garrison activated, responded to threat 5277 | -7/Factory | Identified exit to Garrison 5289 | -7/Factory | Entered Garrison 5289 | -7/Garrison | Accompanied by 7 allies 5291 | -7/Garrison | Reached level 15 5334 | -7/Garrison | Triggered checkpoint 5361 | -7/Garrison | Triggered checkpoint 5408 | -7/Garrison | Discovered new exit (range 18) 5438 | -7/Garrison | Phase Generator disabled 5558 | -7/Garrison | Triggered checkpoint 5612 | -7/Garrison | Discovered new exit (range 17) 5684 | -7/Garrison | Installed Relay Interface Framework 5691 | -7/Garrison | Entered Factory 5692 | -7/Factory | Discovered new exit (range 20) 5837 | -7/Factory | Identified exit to Lower Caves 5837 | -7/Factory | Identified exit to Factory 5870 | -7/Factory | Reached level 16 6155 | -7/Factory | Fabricated A-02 Transporter (x1) 6370 | -7/Factory | Build established: Hacker-Tank 6528 | -7/Factory | Identified exit to Garrison 6781 | -7/Factory | Garrison activated, responded to threat 6939 | -7/Factory | Entered Lower Caves 7091 | -7/Lower Caves | Spotted B-75 Beast 7104 | -7/Lower Caves | Destroyed B-75 Beast 7189 | -7/Lower Caves | Attracted the attention of an 0b10 outpost 7228 | -7/Lower Caves | Destroyed 9 combat bots 7432 | -7/Lower Caves | Identified exit to Lower Caves 7639 | -7/Lower Caves | Entered another Lower Caves area 7639 | -7/Lower Caves | Accompanied by 2 allies 7641 | -7/Lower Caves | Reached level 17 7656 | -7/Lower Caves | P-60 Hacker assimilated allied Fighter 4a 7727 | -7/Lower Caves | Discovered exit to Factory (range 18) 7755 | -7/Lower Caves | Learned Factory stockpile data 7816 | -7/Lower Caves | Learned 8 Factory zone layouts 8138 | -7/Lower Caves | Discovered new exit (range 13) 8181 | -7/Lower Caves | Entered Data Miner 8181 | -7/Data Miner | Discovered new exit (range 6) 8204 | -7/Data Miner | Met Data Miner 8237 | -7/Data Miner | Learned location of Section 7 (-3) 8237 | -7/Data Miner | Acquired the access code to Warlord's prototype stash 8252 | -7/Data Miner | Received God Mode back door access code from Data Miner 8357 | -7/Data Miner | Entered Proximity Caves 8412 | -6/Proximity Caves | Escorted by Enhanced Grunt 8449 | -6/Proximity Caves | Reached level 18 8608 | -6/Proximity Caves | Upgraded with Utility slot (x1) 8809 | -6/Proximity Caves | Attracted the attention of an 0b10 outpost 9144 | -6/Proximity Caves | Found Alien Artifact 9144 | -6/Proximity Caves | Identified Core Expander 9144 | -6/Proximity Caves | Installed Core Expander, added new Propulsion slot 9259 | -6/Proximity Caves | Reached level 19 9280 | -6/Proximity Caves | Destroyed 8 combat bots 9365 | -6/Proximity Caves | Entered Factory 9365 | -6/Factory | Upgraded with Utility slot (x1) 9366 | -6/Factory | Identified exit to Extension 9415 | -6/Factory | Identified exit to Lower Caves 9425 | -6/Factory | Discovered new exit (range 20) 9475 | -6/Factory | Found Prototype Processor 9475 | -6/Factory | Identified Exp. Targeting Computer 9754 | -6/Factory | Fabricated Combat Drone Bay? 9780 | -6/Factory | Incoming investigation squad redirected 9858 | -6/Factory | Local fabrication network quarantined 10002 | -6/Factory | Entered Extension 10056 | -6/Extension | Rescued a captive Derelict 10057 | -6/Extension | Rescued a captive Derelict 10087 | -6/Extension | Rescued a captive Derelict 10087 | -6/Extension | Rescued a captive Derelict 10123 | -6/Extension | Rescued a captive Derelict 10124 | -6/Extension | Central database locked down 10152 | -6/Extension | Incoming investigation squad redirected 10212 | -6/Extension | Reached level 20 10271 | -6/Extension | Rescued a captive Derelict 10343 | -6/Extension | Spotted B-75 Beast 10359 | -6/Extension | Spotted B-75 Beast 10361 | -6/Extension | Discovered new exit (range 19) 10383 | -6/Extension | Destroyed B-75 Beast 10395 | -6/Extension | Destroyed B-75 Beast 10519 | -6/Extension | Rescued a captive Derelict 10582 | -6/Extension | Rescued a captive Derelict 10582 | -6/Extension | Rescued a captive Derelict 10651 | -6/Extension | Rescued A7 10654 | -6/Extension | Rescued a captive Derelict 10680 | -6/Extension | Discovered new exit (range 19) 10694 | -6/Extension | Discovered new exit (range 11) 10730 | -6/Extension | Entered Cetus 10730 | -6/Cetus | Accompanied by 8 allies 10735 | -6/Cetus | Acquired a Cetus Manufacturing Module code from A7 10748 | -6/Cetus | Spotted Cetus Guard 10748 | -6/Cetus | Spotted Cetus Guard 10750 | -6/Cetus | Spotted Cetus Guard 10751 | -6/Cetus | Destroyed Cetus Guard 10754 | -6/Cetus | Spotted Cetus Guard 10757 | -6/Cetus | Allies destroyed Cetus Guard 10763 | -6/Cetus | Allies destroyed Cetus Guard 10767 | -6/Cetus | Destroyed Cetus Guard 10788 | -6/Cetus | Cetus Manufacturing Module disabled 10826 | -6/Cetus | Failed to start Cetus Manufacturing Module 10838 | -6/Cetus | Escorted A7 to Cetus Mainframe 10874 | -6/Cetus | Reached level 21 10930 | -6/Cetus | Found a strange terminal 11001 | -6/Cetus | Discovered new exit (range 15) 11104 | -6/Cetus | Discovered new exit (range 15) 11127 | -6/Cetus | Spotted Cetus Guard 11128 | -6/Cetus | Spotted Cetus Guard 11134 | -6/Cetus | Destroyed Cetus Guard 11134 | -6/Cetus | Spotted Cetus Guard 11135 | -6/Cetus | Destroyed Cetus Guard 11135 | -6/Cetus | Spotted Cetus Guard 11140 | -6/Cetus | Destroyed Cetus Guard 11141 | -6/Cetus | Destroyed Cetus Guard 11149 | -6/Cetus | Discovered new exit (range 15) 11155 | -6/Cetus | Met Revision 17 11230 | -6/Cetus | Entered Archives 11230 | -6/Archives | Accompanied by 2 allies 11235 | -6/Archives | Received a hacking code to weaken MAIN.C 11252 | -6/Archives | Discovered new exit (range 20) 11293 | -6/Archives | Discovered new exit (range 15) 11306 | -6/Archives | Discovered new exit (range 17) 11330 | -6/Archives | Entered Hub_04(d) 11346 | -6/Hub_04(d) | Build established: Generator-Tank 11482 | -6/Hub_04(d) | Discovered new exit (range 16) 11740 | -6/Hub_04(d) | Discovered new exit (range 20) 11937 | -6/Hub_04(d) | Discovered new exit (range 19) 12080 | -6/Hub_04(d) | Spotted B-75 Beast 12396 | -6/Hub_04(d) | Upgraded with Propulsion slot (x1) 12470 | -6/Hub_04(d) | Discovered new exit (range 15) 12569 | -6/Hub_04(d) | Network Hub disabled 12602 | -6/Hub_04(d) | Network Hub disabled 12665 | -6/Hub_04(d) | Spotted Lightning 12669 | -6/Hub_04(d) | Spotted Lightning 12670 | -6/Hub_04(d) | Garrison activated, responded to threat 12670 | -6/Hub_04(d) | Network Hub disabled 12670 | -6/Hub_04(d) | Spotted Lightning 12673 | -6/Hub_04(d) | Spotted Lightning 12673 | -6/Hub_04(d) | Spotted Lightning 12674 | -6/Hub_04(d) | Network Hub disabled 12675 | -6/Hub_04(d) | Core integrity fell below 50% 12678 | -6/Hub_04(d) | System corruption reached 10% 12686 | -6/Hub_04(d) | Core integrity fell below 20% 12712 | -6/Hub_04(d) | Spotted Lightning 12717 | -6/Hub_04(d) | Spotted Lightning 12718 | -6/Hub_04(d) | Spotted Lightning 12719 | -6/Hub_04(d) | Entered Factory 12720 | -5/Factory | Core integrity fell below 50% 12721 | -5/Factory | Reached level 22 13140 | -5/Factory | Fabricated Powered Armor (x2) 13269 | -5/Factory | Fabricated Adv. Datajack (x1) 13311 | -5/Factory | Discovered new exit (range 19) 13416 | -5/Factory | Local fabrication network quarantined 13493 | -5/Factory | Entered another Factory area 13494 | -4/Factory | Core integrity fell below 50% 13495 | -4/Factory | Reached level 23 13531 | -4/Factory | Upgraded with Utility slot (x1) 13615 | -4/Factory | Identified exit to Upper Caves 13615 | -4/Factory | Identified exit to Armory 13672 | -4/Factory | Identified exit to Research 13721 | -4/Factory | Entered Upper Caves 13723 | -4/Upper Caves | Attracted the attention of an 0b10 checkpoint 13728 | -4/Upper Caves | Reached level 24 13764 | -4/Upper Caves | Destroyed 10 combat bots 13765 | -4/Upper Caves | Upgraded with Power slot (x1) 14091 | -4/Upper Caves | Destroyed 7 combat bots 14126 | -4/Upper Caves | Discovered new exit (range 20) 14170 | -4/Upper Caves | Entered another Upper Caves area 14211 | -4/Upper Caves | Discovered exit to Research (range 12) 14303 | -4/Upper Caves | Attracted the attention of an 0b10 checkpoint 14547 | -4/Upper Caves | Learned Research garrison access intel 14603 | -4/Upper Caves | Attracted the attention of an 0b10 base 14614 | -4/Upper Caves | Reached level 25 14638 | -4/Upper Caves | Destroyed 7 combat bots 14853 | -4/Upper Caves | Spotted B-86 Titan 14872 | -4/Upper Caves | Discovered new exit (range 8) 14919 | -4/Upper Caves | Entered Warlord 14976 | -4/Warlord | Discovered new exit (range 15) 14996 | -4/Warlord | Opened side exit 15008 | -4/Warlord | RIF detected upon attempting to enter Warlord's base 15008 | -4/Warlord | Attacked by Warlord forces 15052 | -4/Warlord | Entered Proximity Caves 15054 | -3/Proximity Caves | Attracted the attention of an 0b10 checkpoint 15064 | -3/Proximity Caves | Reached level 26 15066 | -3/Proximity Caves | Upgraded with Weapon slot (x1) 15435 | -3/Proximity Caves | Spotted B-86 Titan 15455 | -3/Proximity Caves | Destroyed B-86 Titan 15478 | -3/Proximity Caves | Discovered exit to Research (range 19) 15548 | -3/Proximity Caves | Entered Research 15549 | -3/Research | Identified exit to Quarantine 15550 | -3/Research | Loaded intel: 4 garrison access locations 15550 | -3/Research | Reached level 27 16334 | -3/Research | Discovered new exit (range 15) 16385 | -3/Research | Entered another Research area 16387 | -2/Research | Reached level 28 16387 | -2/Research | Reached level 29 16731 | -2/Research | Discovered new exit (range 20) 16785 | -2/Research | Entered Access 16787 | -1/Access | Reached level 30 16975 | -1/Access | Reached level 31 17251 | -1/Access | System corruption reached 10% 17342 | -1/Access | Discovered new exit (range 15) 17342 | -1/Access | Reached level 32 17342 | -1/Access | Spotted B-99 Colossus 17372 | -1/Access | Destroyed 7 combat bots 17595 | -1/Access | Found Gamma Bomb Array 17696 | -1/Access | Entered Command 17698 | -1/Command | Reached level 33 17698 | -1/Command | Reached level 34 17971 | -1/Command | Disengaged cave seal 17971 | -1/Command | Wild derelicts emerged from the dark tunnel 18063 | -1/Command | Spotted M Guard 18065 | -1/Command | Spotted M Guard 18100 | -1/Command | Spotted Combat Programmer 18100 | -1/Command | Spotted Combat Programmer 18114 | -1/Command | System corruption reached 30% 18117 | -1/Command | Core integrity fell below 50% 18129 | -1/Command | Core integrity fell below 20% 18145 | -1/Command | Destroyed by Combat Programmer with EMDS Last Messages --------------- Powered Armor destroyed. EMDS Slug penetrates Wall. System corrupted: Matter fused (-7). The unstable cave ceiling collapses. EMDS Slug penetrates Wall. Penetrated by EMDS Slug. The unstable cave ceiling collapses. EMDS Slug penetrates Wall. The unstable cave ceiling collapses. Penetrated by EMDS Slug. Connecting with Terminal... >>Open Sealed Barrier opened. Terminal disabled. Penetrated by EMDS Slug. Door malfunctions. Penetrated by EMDS Slug. System corrupted: Hvy. Disruptor Cannon rejected. EMDS Slug penetrates Reinforced Barrier. Penetrated by EMDS Slug. Map ----- +----------------------------------------------------+ | ???????????????????????????????????????????????? | | ???????????????????????????????????????????????? | | ?????????????????????????????????????????????????# | | ????????????????????????????????????????????????# | | ????????????????????????????????????????????????# | | ????????????????????????????????????????????????# | | ???????????????????????#??#?####??#????????????? | | ???????????????????#??####??#########???#??????##? | | ?????????????????#??#?#?##?########?#????????????# | | ??????????????#????###???#??####?#####?#?? ??#?## | | ?????????????#????###???##?########??####? ???### | | ???????????????#??##???##?#?#?##??#?###??# ???###? | | ??????????????###???####?#?#####?#########? ##### | | ???????????#?#??#?##?######?#??##?##?##### ?#?### | | ??????????????#?##??#?##?####??#?########? ? ##### | | ????????????#???#?###??##??###########?### ?##### | | ????????????##?#?#?#?##?##?###?#?######### ##### | | ??????????????#??#??#####?##?#####?####### ##### | | ?????????##?##?#?####?#################### ##### | | ?????????????#??#?######################## ##### | | ?????????? ? ??#??##?################## ##### | | ??????????? ??? ??###?########?########### ##### | | ??????????? ########################## ##### | | ?????????? / p #### ##### | | ?????????? / Y #### ##### | | ???????? ? / @ ] p #### ##### | | ????????????? ??################## # ## ##### | | ?????????????? ?################ #Y # ## ##### | | ?????????? ?????##?############### ############ | | ????MMM?? ? ??""####?############## # # ### | | ????MMM??????"""?####?############# #### ## | | ????MMM?????""""#?##?############## | | ????????????"""??##?############### | | ??????????? ??" ####?#?############ | | ??????????? ??? ???#?############## | | ???????????"? ? ???###?#####?###### | | ?????????????"??#??#??############# ## # | | ?????????????????##?###?################ | | ????????????? ???#??#?################ # | | ???????????????"#??#?##?############## # | | ?????????????????#?################### # # | | ???????????????????###?##?####?####### ### | | ?????????????????????################## #### | | ??????????????????????################## # ##### | | ???????????????????????#####?############# ##### | | ????????????????????????################## ##### | | ????????????????????????################## ##### | | ????????????????????????########?######### ##### | | ????????????????????????????############## ##### | | ?????????????????????????????##?########## ##### | +----------------------------------------------------+ Best States ------------- Heat Dissipation 133 Energy Generation 97 Energy Capacity 1540 Matter Stores 300 Matter Capacity 300 Sight Range 16 Robot Scan Range 10 Terrain Scan Range 20 Terrain Scan Density 810 Cloak Strength 5 Base Temperature (-) 100 Armor Coverage 800 Resistance: KI 10 Resistance: TH 10 Resistance: EX 10 Weapon Cycling 30 Evasion (%) 50 Targeting Accuracy 5 Core Analysis 10 Particle Charging 20 Offensive Hacking 20 Defensive Hacking 10 Item Schematics ----------------- Adv. Terrain Scanner | -8/Storage | Hacked Combat Drone Bay | -7/Data Miner | Free Lgt. Regenerative Plating | -7/Data Miner | Free Exp. Cesium-ion Thruster | -7/Data Miner | Free Exp. ECM Suite | -7/Data Miner | Free Cloaking Device | -7/Data Miner | Free Mni. Smartbomb Launcher | -7/Data Miner | Free Powered Armor | -6/Hub_04(d) | Hacked Adv. Datajack | -6/Hub_04(d) | Hacked Imp. Force Field | -4/Factory | Hacked Exp. Terrain Scanner | -4/Factory | Hacked Robot Schematics ------------------ S-27 Virus | -7/Data Miner | Free G-50 Soldier | -7/Data Miner | Free G-67 Veteran | -7/Data Miner | Free L-41 Fighter | -7/Data Miner | Free X-72 Disruptor | -7/Data Miner | Free I-36 Angel | -7/Data Miner | Free I-47 Archangel | -7/Data Miner | Free Fabricated ------------ A-02 Transporter | x1 | -7/Factory | Preloaded Combat Drone Bay | x1 | -6/Factory Powered Armor | x2 | -5/Factory Adv. Datajack | x1 | -5/Factory Alien Tech Used ----------------- Core Expander Achievements -------------- 404 Challenges ------------ None RPGLIKE | -11 -10 -10 -9 -9 -9 -8 -8 -8 -7 -7 -7 -7 -7 -7 -6 -6 -6 -6 -6 -6 -5 -4 -4 -4 -4 -3 -3 -2 -1 -1 --------- Run | Scr Mat Min Mat Min Exi Min Mat Sto Fac Gar Fac Low Low Dat Pro Fac Ext Cet Arc Hub Fac Fac Upp Upp War Pro Res Res Acc Com Levels Raised 33 | . . 1 3 1 1 1 3 2 1 1 1 . 1 . 2 . 1 1 . . 1 1 1 1 . 1 1 2 3 2 XP Earned 52888 | 3000 1140 914 5293 1550 350 1700 4662 2408 2631 1465 1234 637 307 152 2600 980 1171 1068 168 736 953 1782 1277 877 170 1992 1926 2520 4875 2350 XP Spent 41630 | 2500 450 1100 4830 1500 1550 1500 3645 3850 1520 900 2100 . . . 1700 2800 . . . 2945 . 2300 2150 1440 . 1410 1440 . . . Upgrades 96 | 5 5 2 17 3 4 2 7 4 8 3 4 . . . 1 2 . . . 14 . 1 2 6 . 2 4 . . . Power Slot 3 | . . . . . . . 2 . . . . . . . . . . . . . . . 1 . . . . . . . Propulsion Slot 2 | 1 . . . . . . . . . . . . . . . . . . . 1 . . . . . . . . . . Utility Slot 7 | 1 . . 1 . 1 . 1 . . . . . . . 1 1 . . . . . 1 . . . . . . . . Weapon Slot 3 | . . . 1 . . 1 . . . . . . . . . . . . . . . . . . . 1 . . . . Core Integrity 21 | . . . 8 . . . . . . . . . . . . . . . . 13 . . . . . . . . . . Heat Dissipation 18 | . 5 . . . . . 2 . . . . . . . . . . . . . . . . 6 . 1 4 . . . Energy Generation 4 | . . . 2 . . . . . . . . . . . . 1 . . . . . . 1 . . . . . . . Energy Storage 6 | . . . 4 . . . 2 . . . . . . . . . . . . . . . . . . . . . . . Mass Support 1 | . . 1 . . . . . . . . . . . . . . . . . . . . . . . . . . . . Inventory Capacity 7 | 3 . 1 1 . . . . 2 . . . . . . . . . . . . . . . . . . . . . . Terrain Scan Density 8 | . . . . . . . . . 8 . . . . . . . . . . . . . . . . . . . . . Ranged Accuracy 4 | . . . . 3 . 1 . . . . . . . . . . . . . . . . . . . . . . . . Hack Attack % 4 | . . . . . . . . 2 . . 2 . . . . . . . . . . . . . . . . . . . Hack Defense % 2 | . . . . . . . . . . . 2 . . . . . . . . . . . . . . . . . . . KI Resistance % 2 | . . . . . 1 . . . . 1 . . . . . . . . . . . . . . . . . . . . TH Resistance % 2 | . . . . . 1 . . . . 1 . . . . . . . . . . . . . . . . . . . . EX Resistance % 2 | . . . . . 1 . . . . 1 . . . . . . . . . . . . . . . . . . . . Protomatter Created 4397 | . 129 . 307 35 . 189 262 422 6 129 94 99 60 . 153 259 187 172 68 408 156 . 184 180 . 164 128 65 457 84 Integrity Restored 8973 | . 242 41 956 105 . 453 532 294 . 79 270 141 180 . 986 251 258 232 202 234 468 . 519 486 . 444 373 195 1032 . Core 6992 | . 188 18 923 105 . 224 402 139 . 55 267 141 180 . 605 170 182 134 42 173 468 . 519 486 . 401 190 195 785 . Parts 1981 | . 54 23 33 . . 229 130 155 . 24 3 . . . 381 81 76 98 160 61 . . . . . 43 183 . 247 . Protomatter Decayed 2366 | . 45 . . . . 2 80 290 49 261 61 33 . . 3 66 360 422 . 335 . . . 21 36 14 . . 98 190 Game ------ Seed PoweredNullInitializer Manual? 0 Play Time 03:20:39 Cumulative 185.6 hours Start 2020.08.03 @ 12:42:09 End 2020.08.04 @ 12:47:02 Sessions 3 Manual Loads 0 Difficulty Rogue Special Mode Winter2019/RPGLIKE Game No. 207 Rogue 207 Adventurer 0 Explorer 0 Win Type - Total 7 Types 5/0/2/0/0/0/0 Lore% 73 Gallery% 83 Achievement% 60 Wizard Run 0 Options --------- ASCII 0 Keyboard 1 Movement Numpad Keybinds 0 Fullscreen 1 Font 18/SmallcapsGlow Map View 76x50 Tactical HUD 1 Map Filters NONE Filters NONE Steam 1 RUN: af7cc40c-8b57-4657-89f8-3152cc8001b0